bitfinex-derivatives/quotes_BTCF0:USTF0_20250703
["timestamp","ask_amount","ask_price","bid_price","bid_amount"]
[1751511942558,0.93019451,108770.0,108760.0,0.82769672]
[1751511945058,0.6791786,108770.0,108760.0,0.82769672]
[1751511947156,0.6791786,108770.0,108760.0,0.3256649]
[1751511947361,1.22019451,108770.0,108760.0,0.3256649]
[1751511947557,0.91019451,108770.0,108760.0,0.57668081]
[1751511947760,0.91019451,108770.0,108760.0,0.48477261]
[1751511948059,1.28019451,108770.0,108760.0,0.48477261]
[1751511954567,1.28019451,108770.0,108760.0,0.73578852]
[1751511954859,0.1145783,108770.0,108760.0,0.73578852]
[1751511955060,0.0216783,108770.0,108760.0,0.88578852]
[1751511955259,0.01654719,108780.0,108770.0,0.1838141]
[1751511955465,0.01654719,108780.0,108770.0,1.25284592]
[1751511955766,0.01654719,108780.0,108770.0,1.17284592]
[1751511956062,0.01654719,108780.0,108770.0,1.52801597]
[1751511956259,0.01654719,108780.0,108770.0,1.22801597]
[1751511956962,0.01654719,108780.0,108770.0,1.80801597]
[1751511957159,0.3608,108790.0,108780.0,0.1837976]
[1751511957463,0.4565,108800.0,108790.0,0.1837807]
[1751511957665,0.43247032,108810.0,108800.0,0.1837638]
[1751511957867,0.43247032,108810.0,108800.0,0.80315652]
[1751511957868,0.37743048,108810.0,108800.0,0.80315652]
[1751511958165,0.3608,108810.0,108800.0,0.73315652]
[1751511958366,0.76305865,108820.0,108810.0,0.1837469]
[1751511958564,0.82305865,108820.0,108810.0,0.43476281]
[1751511958965,1.07407456,108820.0,108810.0,0.43476281]
[1751511959165,0.82305865,108820.0,108810.0,0.43476281]
[1751511959366,0.82305865,108820.0,108810.0,0.44402829]
[1751511959769,0.82305865,108820.0,108810.0,0.44386274]
[1751511960164,0.82305865,108820.0,108810.0,0.19301238]
[1751511960468,0.82305865,108820.0,108810.0,0.1837469]
[1751511960469,1.14305865,108820.0,108810.0,0.1837469]
[1751511960768,1.39390901,108820.0,108810.0,0.1837469]
[1751511961163,0.53338125,108820.0,108810.0,0.44355071]
[1751511961370,0.368938,108820.0,108810.0,0.69440107]
[1751511961566,0.372938,108820.0,108810.0,0.78860107]
[1751511961869,0.556668,108820.0,108810.0,0.53775071]
[1751511962864,0.586868,108820.0,108810.0,0.53775071]
[1751511963169,0.619968,108820.0,108810.0,0.53775071]
[1751511966870,0.619968,108820.0,108810.0,0.50575071]
[1751511968373,0.639968,108820.0,108810.0,0.50575071]
[1751511968574,0.619968,108820.0,108810.0,0.50575071]
[1751511972076,0.619968,108820.0,108810.0,0.44355071]
[1751511973182,0.639968,108820.0,108810.0,0.44355071]
[1751511973482,1.18081836,108820.0,108810.0,0.1837469]
[1751511974283,1.29504558,108820.0,108810.0,0.1837469]
[1751511974478,0.1837469,108810.0,108800.0,0.336625]
[1751511974678,0.8286469,108810.0,108800.0,0.336625]
[1751511975278,0.8286469,108810.0,108800.0,0.34580237]
[1751511975782,0.8306469,108810.0,108800.0,0.34580237]
[1751511976278,0.8306469,108810.0,108800.0,0.336625]
[1751511976478,1.08449726,108810.0,108800.0,0.244747]
[1751511977782,1.10098831,108810.0,108800.0,0.1988097]
[1751511978176,1.12335527,108810.0,108800.0,0.1988097]
[1751511980285,0.87250491,108810.0,108800.0,0.1988097]
[1751511984285,1.12335527,108810.0,108800.0,0.1988097]
[1751511986887,0.87250491,108810.0,108800.0,0.1988097]
[1751511987087,1.12335527,108810.0,108800.0,0.1988097]
[1751511987289,1.12335527,108810.0,108800.0,0.0150609]
[1751511987484,1.12335527,108810.0,108800.0,0.1988247]
[1751511987784,1.12335527,108810.0,108800.0,0.0150609]
[1751511988684,1.1324663,108810.0,108800.0,0.0150609]
[1751511990686,0.9487194,108810.0,108780.0,0.29990583]
[1751511990890,0.5445807,108790.0,108780.0,0.55075619]
[1751511991090,0.64694766,108790.0,108780.0,0.55075619]
[1751511991393,0.85184766,108790.0,108780.0,0.55075619]
[1751511995485,0.85184766,108790.0,108780.0,0.29990583]
[1751511995994,0.86859226,108790.0,108780.0,0.20800933]
[1751511998989,1.11944262,108790.0,108780.0,0.19884847]
[1751512000287,1.48024262,108790.0,108780.0,0.01506327]
[1751512000990,1.48024262,108790.0,108780.0,0.19886087]
[1751512004594,1.48024262,108790.0,108780.0,0.1837976]
[1751512005092,0.1837976,108780.0,108770.0,0.23870659]
[1751512005297,1.00156456,108780.0,108770.0,0.23870659]
[1751512006199,1.00156456,108780.0,108770.0,0.24070659]
[1751512007494,1.25241492,108780.0,108770.0,0.1858031]
[1751512007702,2.09101492,108780.0,108770.0,0.1858031]
[1751512007901,1.84016456,108780.0,108770.0,0.1858031]
[1751512008197,1.84016456,108780.0,108770.0,0.1878031]
[1751512008998,1.84016456,108780.0,108770.0,0.19685395]
[1751512013620,1.00156456,108780.0,108770.0,0.19685395]
[1751512015816,1.25262501,108780.0,108770.0,0.4479144]
[1751512022928,1.25262501,108780.0,108770.0,0.43886355]
[1751512025427,1.28262501,108780.0,108770.0,0.43886355]
[1751512032835,1.03156456,108780.0,108770.0,0.43886355]
[1751512033037,1.28262501,108780.0,108770.0,0.43886355]
[1751512036937,1.28262501,108780.0,108770.0,0.1878031]
[1751512037139,1.28262501,108780.0,108770.0,0.43886355]
[1751512037938,1.53368546,108780.0,108770.0,0.43886355]
[1751512039140,1.28262501,108780.0,108770.0,0.43886355]
[1751512044046,0.92182501,108780.0,108770.0,0.43886355]
[1751512044344,1.28262501,108780.0,108770.0,0.43886355]
[1751512049148,1.28262501,108780.0,108770.0,0.1878031]
[1751512049347,1.28262501,108780.0,108770.0,0.43886355]
[1751512051651,0.92182501,108780.0,108770.0,0.43886355]
[1751512051853,1.28262501,108780.0,108770.0,0.43886355]
[1751512053053,1.03156456,108780.0,108770.0,0.43886355]
[1751512053354,0.56696456,108780.0,108770.0,0.689924]
[1751512053547,0.56696456,108780.0,108770.0,0.796224]
[1751512053852,0.56696456,108780.0,108770.0,1.056224]
[1751512054244,0.56696456,108780.0,108770.0,0.786224]
[1751512055550,0.02236696,108780.0,108770.0,1.226224]
[1751512055755,0.5613253,108790.0,108780.0,0.1837976]
[1751512055950,0.58392756,108790.0,108780.0,0.7816185]
[1751512056851,0.58392756,108790.0,108780.0,0.7826185]
[1751512057355,0.58392756,108790.0,108780.0,0.7836185]
[1751512064062,0.67952756,108790.0,108780.0,0.7836185]
[1751512064761,1.29058801,108790.0,108780.0,0.43685805]
[1751512066763,1.29058801,108790.0,108780.0,0.25306045]
[1751512067062,1.29058801,108790.0,108780.0,0.1857976]
[1751512067261,1.29058801,108790.0,108780.0,0.43685805]
[1751512068056,1.29058801,108790.0,108780.0,0.1857976]
[1751512068456,1.29058801,108790.0,108780.0,0.43685805]
[1751512068864,1.29058801,108790.0,108780.0,0.1857976]
[1751512078081,1.29058801,108790.0,108780.0,0.43685805]
[1751512083778,1.29058801,108790.0,108780.0,0.1857976]
[1751512084382,2.12826801,108790.0,108780.0,0.002]
[1751512085387,2.19260801,108790.0,108780.0,0.002]
[1751512086392,2.44366846,108790.0,108780.0,0.002]
[1751512086688,2.19260801,108790.0,108780.0,0.002]
[1751512087382,2.19260801,108790.0,108780.0,0.1857976]
[1751512087589,2.19260801,108790.0,108780.0,0.002]
[1751512088891,2.19260801,108790.0,108780.0,0.1857976]
[1751512089684,1.35492801,108790.0,108780.0,0.1857976]
[1751512089991,2.19260801,108790.0,108780.0,0.1857976]
[1751512090592,2.19260801,108790.0,108780.0,0.43685805]
[1751512091692,1.35492801,108790.0,108780.0,0.43685805]
[1751512093194,1.35492801,108790.0,108780.0,0.1857976]
[1751512093988,1.40996785,108790.0,108780.0,0.1857976]
[1751512095995,1.77076785,108790.0,108780.0,0.1857976]
[1751512098597,1.5197074,108790.0,108780.0,0.1857976]
[1751512098896,1.77071313,108790.0,108780.0,0.1857976]
[1751512099298,1.04911313,108790.0,108780.0,0.1857976]
[1751512099595,1.77071313,108790.0,108780.0,0.1857976]
[1751512099893,1.04911313,108790.0,108780.0,0.1857976]
[1751512100094,1.77071313,108790.0,108780.0,0.1857976]
[1751512103900,1.04911313,108790.0,108780.0,0.1857976]
[1751512104093,1.77071313,108790.0,108780.0,0.1857976]
[1751512104801,1.51965268,108790.0,108780.0,0.1857976]
[1751512105001,1.77071313,108790.0,108780.0,0.1857976]
[1751512105699,1.77071313,108790.0,108780.0,0.43685805]
[1751512107815,1.77076063,108790.0,108780.0,0.43685805]
[1751512108598,1.77076063,108790.0,108780.0,0.46815805]
[1751512109302,1.77076063,108790.0,108780.0,0.43685805]
[1751512113707,1.77077348,108790.0,108780.0,0.43685805]
[1751512115805,1.40997348,108790.0,108780.0,0.43685805]
[1751512116311,1.39322888,108790.0,108780.0,0.43685805]
[1751512116813,1.39322888,108790.0,108780.0,0.1857976]
[1751512117112,1.39322888,108790.0,108780.0,0.43685805]
[1751512118314,1.39322888,108790.0,108780.0,0.43685785]
[1751512119307,1.33818904,108790.0,108780.0,0.1857974]
[1751512121413,1.33818904,108790.0,108780.0,0.43685785]
[1751512129217,1.39322888,108790.0,108780.0,0.43685785]
[1751512134326,1.03242888,108790.0,108780.0,0.43685785]
[1751512134527,1.39322888,108790.0,108780.0,0.43685785]
[1751512136326,1.32888888,108790.0,108780.0,0.43685785]
[1751512139125,1.39322888,108790.0,108780.0,0.43685785]
[1751512142327,1.39322888,108790.0,108780.0,0.1857974]
[1751512142532,1.39322888,108790.0,108780.0,0.43685785]
[1751512144533,1.39422888,108790.0,108780.0,0.43585785]
[1751512144726,1.39422888,108790.0,108780.0,0.1847974]
[1751512144932,1.39422888,108790.0,108780.0,0.43585785]
[1751512146033,1.39522888,108790.0,108780.0,0.43485785]
[1751512149038,1.39522888,108790.0,108780.0,0.1837974]
[1751512155043,1.39522888,108790.0,108780.0,0.43485785]
[1751512159843,1.39528538,108790.0,108780.0,0.43485785]
[1751512160344,1.39528538,108790.0,108780.0,0.1837974]
[1751512160540,1.39528538,108790.0,108780.0,0.43485785]
[1751512162242,1.03448538,108790.0,108780.0,0.43485785]
[1751512162543,1.39528538,108790.0,108780.0,0.43485785]
[1751512168551,1.03448538,108790.0,108780.0,0.43485785]
[1751512168849,1.39528538,108790.0,108780.0,0.43485785]
[1751512178960,1.03448538,108790.0,108780.0,0.43485785]
[1751512179160,1.39528538,108790.0,108780.0,0.43485785]
[1751512184771,1.39528538,108790.0,108780.0,0.1837974]
[1751512184973,1.39528538,108790.0,108780.0,0.43485785]
[1751512188269,1.37262099,108790.0,108780.0,0.43485785]
[1751512188470,1.39522655,108790.0,108780.0,0.43485785]
[1751512191960,1.1441661,108790.0,108780.0,0.43485785]
[1751512192166,1.39522655,108790.0,108780.0,0.43485785]
[1751512193971,1.37262099,108790.0,108780.0,0.43485785]
[1751512194274,1.39531301,108790.0,108780.0,0.43485785]
[1751512195577,1.14425256,108790.0,108780.0,0.43485785]
[1751512195776,1.03531301,108790.0,108780.0,0.43485785]
[1751512195976,1.39531301,108790.0,108780.0,0.6859183]
[1751512196170,1.39531301,108790.0,108780.0,0.43485785]
[1751512199176,1.20531301,108790.0,108780.0,0.43485785]
[1751512199477,1.39531301,108790.0,108780.0,0.43485785]
[1751512202280,1.03451301,108790.0,108780.0,0.43485785]
[1751512202479,1.39531301,108790.0,108780.0,0.43485785]
[1751512203981,1.14425256,108790.0,108780.0,0.43485785]
[1751512204180,1.39531301,108790.0,108780.0,0.43485785]
[1751512208584,1.34027317,108790.0,108780.0,0.43485785]
[1751512214589,1.34027317,108790.0,108780.0,0.1837974]
[1751512214789,1.34027317,108790.0,108780.0,0.43485785]
[1751512219195,1.39531301,108790.0,108780.0,0.43485785]
[1751512220199,1.39532461,108790.0,108780.0,0.43485785]
[1751512222899,1.37262099,108790.0,108780.0,0.43485785]
[1751512223102,1.39532587,108790.0,108780.0,0.43485785]
[1751512234605,1.39532587,108790.0,108780.0,0.1837974]
[1751512234805,1.39532587,108790.0,108780.0,0.43485785]
[1751512237006,0.1837973,108780.0,108770.0,0.45909587]
[1751512237205,1.50222308,108780.0,108770.0,0.19880647]
[1751512237405,2.33838308,108780.0,108770.0,0.1838019]
[1751512237702,0.20051929,108770.0,108760.0,0.24509428]
[1751512238001,0.90708462,108770.0,108760.0,0.49615473]
[1751512238700,0.97949862,108770.0,108760.0,0.49615473]
[1751512239306,0.97949862,108770.0,108760.0,0.49815473]
[1751512239807,1.04384862,108770.0,108760.0,0.50015473]
[1751512241014,1.04384862,108770.0,108760.0,0.75121518]
[1751512241607,0.79278817,108770.0,108760.0,0.75121518]
[1751512242412,1.04384862,108770.0,108760.0,0.50015473]
[1751512242799,1.40464862,108770.0,108760.0,0.50015473]
[1751512249818,1.40464862,108770.0,108760.0,0.24909428]
[1751512250017,1.40464862,108770.0,108760.0,0.50015473]
[1751512251019,1.40464862,108770.0,108760.0,0.24909428]
[1751512251219,1.40464862,108770.0,108760.0,0.50015473]
[1751512256415,1.40464862,108770.0,108760.0,0.004]
[1751512258627,1.40464862,108770.0,108760.0,0.43889125]
[1751512258828,2.24076862,108770.0,108760.0,0.6899517]
[1751512259827,1.40464862,108770.0,108760.0,0.6899517]
[1751512260028,0.98358817,108770.0,108760.0,0.6899517]
[1751512260427,0.98358817,108770.0,108760.0,0.7226517]
[1751512260823,0.98346308,108770.0,108760.0,0.7226517]
[1751512261528,1.13346308,108770.0,108760.0,0.7226517]
[1751512261730,0.88346308,108770.0,108760.0,0.7226517]
[1751512263328,1.13452353,108770.0,108760.0,0.7226517]
[1751512263529,1.37452353,108770.0,108760.0,0.7226517]
[1751512264227,1.37452353,108770.0,108760.0,0.6899517]
[1751512265229,1.18346308,108770.0,108760.0,0.6899517]
[1751512269330,1.18346308,108770.0,108760.0,0.1878308]
[1751512269531,1.18346308,108770.0,108760.0,0.6899517]
[1751512269929,0.82266308,108770.0,108760.0,0.6899517]
[1751512270128,1.18346308,108770.0,108760.0,0.6899517]
[1751512273733,0.82266308,108770.0,108760.0,0.6899517]
[1751512273933,1.18346308,108770.0,108760.0,0.6899517]
[1751512274630,0.92346308,108770.0,108760.0,0.6899517]
[1751512274836,1.41452353,108770.0,108760.0,0.6899517]
[1751512278036,0.91346308,108770.0,108760.0,0.6899517]
[1751512278337,1.12346308,108770.0,108760.0,0.6899517]
[1751512278935,0.56266308,108770.0,108760.0,0.6899517]
[1751512279441,0.56266308,108770.0,108760.0,0.7204517]
[1751512279638,0.56266308,108770.0,108760.0,0.7843517]
[1751512279941,0.53186308,108770.0,108760.0,0.7843517]
[1751512284445,0.42774908,108770.0,108760.0,0.7843517]
[1751512285345,0.42774908,108770.0,108760.0,0.6899517]
[1751512285645,0.73874908,108770.0,108760.0,0.6899517]
[1751512286844,2.14912031,108770.0,108760.0,0.004]
[1751512287049,2.490071,108770.0,108760.0,0.004]
[1751512287349,2.23901055,108770.0,108760.0,0.004]
[1751512289350,2.490071,108770.0,108760.0,0.004]
[1751512294652,2.150071,108770.0,108760.0,0.004]
[1751512294860,0.1838644,108740.0,108730.0,0.84722456]
[1751512295053,1.06871578,108740.0,108730.0,0.47120352]
[1751512295260,1.06871578,108740.0,108730.0,0.37927942]
[1751512295261,1.52278144,108740.0,108730.0,0.37927942]
[1751512295556,1.77384189,108740.0,108730.0,0.19539812]
[1751512295858,1.52278144,108740.0,108730.0,0.19539812]
[1751512296058,1.82888173,108740.0,108730.0,0.00577593]
[1751512296256,0.20083417,108720.0,108710.0,0.18704094]
[1751512296562,2.27245121,108720.0,108710.0,0.18704094]
[1751512296750,1.49875121,108720.0,108710.0,0.18704094]
[1751512297659,1.49675121,108720.0,108710.0,0.18704094]
[1751512297862,1.24599965,108720.0,108710.0,0.18704094]
[1751512298359,1.23999965,108720.0,108710.0,0.19638011]
[1751512298559,1.23999965,108720.0,108710.0,0.20138011]
[1751512298760,1.30437965,108720.0,108710.0,0.20138011]
[1751512299059,1.30437965,108720.0,108710.0,0.20738011]
[1751512299262,1.30437965,108720.0,108710.0,0.19804094]
[1751512299452,1.33587965,108720.0,108710.0,0.19804094]
[1751512302955,1.33587965,108720.0,108710.0,0.21172048]
[1751512303960,1.33587965,108720.0,108710.0,0.21172073]
[1751512306861,1.31318351,108720.0,108710.0,0.21172073]
[1751512308761,1.06181417,108720.0,108710.0,0.21172073]
[1751512309060,2.14946351,108720.0,108710.0,0.21172073]
[1751512309257,1.89809417,108720.0,108710.0,0.21172073]
[1751512309456,2.14946351,108720.0,108710.0,0.21172073]
[1751512310657,1.89809417,108720.0,108710.0,0.21172073]
[1751512313661,2.14946351,108720.0,108710.0,0.21172073]
[1751512313862,2.17184404,108720.0,108710.0,0.21172073]
[1751512315662,1.33556404,108720.0,108710.0,0.21172073]
[1751512315864,2.17188404,108720.0,108710.0,0.21172073]
[1751512316161,1.9205147,108720.0,108710.0,0.21172073]
[1751512322768,2.17188404,108720.0,108710.0,0.21172073]
[1751512327073,1.9205147,108720.0,108710.0,0.21172073]
[1751512327273,2.17188404,108720.0,108710.0,0.21172073]
[1751512327876,2.17188404,108720.0,108710.0,0.21178879]
[1751512330877,2.17188404,108720.0,108710.0,0.21178886]
[1751512331782,2.17185268,108720.0,108710.0,0.46312684]
[1751512333888,2.17185268,108720.0,108710.0,0.46312708]
[1751512335484,1.9205147,108720.0,108710.0,0.46312708]
[1751512335681,2.17185268,108720.0,108710.0,0.46312708]
[1751512337581,2.17185268,108720.0,108710.0,0.44937892]
[1751512337582,0.7233947,108720.0,108710.0,0.44937892]
[1751512337885,1.1475747,108720.0,108710.0,0.44937892]
[1751512338084,1.1475747,108720.0,108710.0,0.54477892]
[1751512338681,1.39891268,108720.0,108710.0,0.54477892]
[1751512338882,1.39891268,108720.0,108710.0,0.29344094]
[1751512339085,1.43041268,108720.0,108710.0,0.54477892]
[1751512339696,0.59413268,108720.0,108710.0,0.54477892]
[1751512342081,0.3427947,108720.0,108710.0,0.29344094]
[1751512342286,0.59413268,108720.0,108710.0,0.54477892]
[1751512343787,0.62493268,108720.0,108710.0,0.54477892]
[1751512346493,0.64493268,108720.0,108710.0,0.47947892]
[1751512347087,0.64493268,108720.0,108710.0,0.44937892]
[1751512347282,0.97493268,108720.0,108710.0,0.44937892]
[1751512348895,1.58707066,108720.0,108710.0,0.01412744]
[1751512349594,1.58707066,108720.0,108710.0,0.19804244]
[1751512350996,1.52269066,108720.0,108710.0,0.19804244]
[1751512352294,1.0200147,108720.0,108710.0,0.19804244]
[1751512352495,1.52269066,108720.0,108710.0,0.44938042]
[1751512352794,1.27135268,108720.0,108710.0,0.44938042]
[1751512354086,1.27135268,108720.0,108710.0,0.19804244]
[1751512354293,1.27135268,108720.0,108710.0,0.44938042]
[1751512355294,1.24135268,108720.0,108710.0,0.44938042]
[1751512355897,0.57055268,108720.0,108710.0,0.44938042]
[1751512356096,0.56055268,108720.0,108710.0,0.44938042]
[1751512357601,0.56055268,108720.0,108710.0,0.48168042]
[1751512357801,0.56055268,108720.0,108710.0,0.51178042]
[1751512358000,0.3172146,108720.0,108710.0,0.51178042]
[1751512358201,0.2864146,108720.0,108710.0,0.56666668]
[1751512358402,0.2864146,108720.0,108710.0,0.59876668]
[1751512359003,0.2864146,108720.0,108710.0,1.07876668]
[1751512359199,0.2864146,108720.0,108710.0,1.03876668]
[1751512360303,0.2864146,108720.0,108710.0,1.20876668]
[1751512360703,0.53775258,108720.0,108710.0,1.20876668]
[1751512362409,0.2864146,108720.0,108710.0,0.96876668]
[1751512363005,0.2864146,108720.0,108710.0,1.00876668]
[1751512363495,0.0393165,108720.0,108710.0,1.28010466]
[1751512363700,0.0393165,108720.0,108710.0,2.32626466]
[1751512363896,0.0393165,108720.0,108710.0,1.76626466]
[1751512364100,0.0393165,108720.0,108710.0,1.79492668]
[1751512364400,0.0393165,108720.0,108710.0,1.8135887]
[1751512364602,0.2232145,108720.0,108710.0,2.06492668]
[1751512364801,0.2232145,108720.0,108710.0,2.04492668]
[1751512365305,0.0393165,108720.0,108710.0,2.40572668]
[1751512366410,0.2232145,108720.0,108710.0,2.40572668]
[1751512367716,0.2232145,108720.0,108710.0,1.88572668]
[1751512373620,0.2561145,108720.0,108710.0,1.88572668]
[1751512375419,0.2873145,108720.0,108710.0,1.88572668]
[1751512375623,0.1034165,108720.0,108710.0,1.88572668]
[1751512376823,0.2873145,108720.0,108710.0,1.88572668]
[1751512380425,0.2873145,108720.0,108710.0,1.04956668]
[1751512380626,0.2873145,108720.0,108710.0,1.88560668]
[1751512381725,0.3182145,108720.0,108710.0,1.88560668]
[1751512383627,0.3182145,108720.0,108710.0,1.52480668]
[1751512383830,0.3182145,108720.0,108710.0,1.89560668]
[1751512385928,0.3182145,108720.0,108710.0,1.86350668]
[1751512386123,0.3182145,108720.0,108710.0,1.80110668]
[1751512386529,0.3182145,108720.0,108710.0,1.5497687]
[1751512386731,0.3182145,108720.0,108710.0,1.80110668]
[1751512387630,0.3182145,108720.0,108710.0,2.03422668]
[1751512388725,0.3182145,108720.0,108710.0,1.7828887]
[1751512388928,0.3182145,108720.0,108710.0,2.03422668]
[1751512390633,0.1343165,108720.0,108710.0,2.03422668]
[1751512391833,0.1343165,108720.0,108710.0,2.86556466]
[1751512392135,0.08737,108730.0,108720.0,0.183898]
[1751512392327,0.52258908,108730.0,108720.0,0.23878426]
[1751512392527,1.34245488,108730.0,108720.0,0.23878426]
[1751512392733,0.183898,108720.0,108710.0,0.4398432]
[1751512393027,1.47937396,108720.0,108710.0,1.18110692]
[1751512393228,1.47937396,108720.0,108710.0,0.33910692]
[1751512393533,1.47737396,108720.0,108710.0,0.33910692]
[1751512393735,1.22603598,108720.0,108710.0,0.33910692]
[1751512394034,1.22603598,108720.0,108710.0,0.34310692]
[1751512394229,1.22603598,108720.0,108710.0,0.33810692]
[1751512394435,1.22503598,108720.0,108710.0,0.33810692]
[1751512394634,1.22503598,108720.0,108710.0,0.5894449]
[1751512395034,1.22503598,108720.0,108710.0,0.5924449]
[1751512395333,1.22503598,108720.0,108710.0,0.53731752]
[1751512396335,1.22503598,108720.0,108710.0,0.28597954]
[1751512396530,1.22503598,108720.0,108710.0,0.53731752]
[1751512397936,0.86423598,108720.0,108710.0,0.53731752]
[1751512398135,1.22503598,108720.0,108710.0,0.53731752]
[1751512401233,0.683698,108720.0,108710.0,0.53731752]
[1751512402531,0.5028,108720.0,108710.0,0.53731752]
[1751512402738,0.092,108720.0,108710.0,0.53731752]
[1751512402938,0.092,108720.0,108710.0,0.5924449]
[1751512403140,0.275898,108720.0,108710.0,0.53731752]
[1751512403340,0.52723598,108720.0,108710.0,0.53731752]
[1751512404140,0.54964818,108720.0,108710.0,0.53731752]
[1751512408738,0.2983102,108720.0,108710.0,0.53731752]
[1751512408945,0.54964818,108720.0,108710.0,0.53731752]
[1751512415347,0.54964818,108720.0,108710.0,0.5924449]
[1751512416349,0.55964818,108720.0,108710.0,0.5924449]
[1751512416544,0.55964818,108720.0,108710.0,0.53731752]
[1751512422358,0.55964818,108720.0,108710.0,0.5924449]
[1751512426055,0.1244122,108720.0,108710.0,0.5924449]
[1751512426263,0.2680102,108720.0,108710.0,0.5924449]
[1751512426560,0.2680102,108720.0,108710.0,0.6556449]
[1751512426762,0.2680102,108720.0,108710.0,0.6863449]
[1751512429065,0.2910002,108720.0,108710.0,0.6863449]
[1751512430567,0.3553802,108720.0,108710.0,0.6863449]
[1751512435870,0.1714822,108720.0,108710.0,0.6863449]
[1751512436169,0.3553802,108720.0,108710.0,0.6863449]
[1751512436969,0.3253802,108720.0,108710.0,0.6863449]
[1751512438071,0.1414822,108720.0,108710.0,0.6863449]
[1751512439677,0.3253801,108720.0,108710.0,0.63121752]
[1751512439868,0.3563801,108720.0,108710.0,0.63121752]
[1751512440372,0.3871801,108720.0,108710.0,0.63121752]
[1751512440869,0.63851808,108720.0,108710.0,0.63121752]
[1751512441471,0.3871801,108720.0,108710.0,0.63121752]
[1751512441671,0.63851808,108720.0,108710.0,0.63121752]
[1751512441871,0.3871801,108720.0,108710.0,0.63121752]
[1751512442072,0.63851808,108720.0,108710.0,0.63121752]
[1751512442871,0.45462018,108720.0,108710.0,0.63121752]
[1751512443773,0.2032822,108720.0,108710.0,0.63121752]
[1751512445473,0.18087,108720.0,108710.0,0.63121752]
[1751512445771,0.20324378,108720.0,108710.0,0.53731752]
[1751512446171,0.45458176,108720.0,108710.0,0.53731752]
[1751512446472,0.63847976,108720.0,108710.0,0.53731752]
[1751512448372,0.63847976,108720.0,108710.0,1.37323752]
[1751512449471,0.45458176,108720.0,108710.0,1.37323752]
[1751512449673,0.63847976,108720.0,108710.0,1.37323752]
[1751512450276,0.45458176,108720.0,108710.0,1.37323752]
[1751512451266,0.20324378,108720.0,108710.0,1.37323752]
[1751512457278,0.20324378,108720.0,108710.0,1.43763752]
[1751512457976,0.20324378,108720.0,108710.0,1.4927649]
[1751512458881,0.20324378,108720.0,108710.0,1.50780727]
[1751512462286,0.20324378,108720.0,108710.0,1.25646929]
[1751512462480,0.20324378,108720.0,108710.0,1.44340727]
[1751512462884,0.63847976,108720.0,108710.0,0.35614929]
[1751512463084,0.63847976,108720.0,108710.0,1.44332727]
[1751512464987,0.67847976,108720.0,108710.0,1.44332727]
[1751512465587,0.49458176,108720.0,108710.0,1.44332727]
[1751512466287,0.24324378,108720.0,108710.0,1.44332727]
[1751512468586,0.49458176,108720.0,108710.0,1.44332727]
[1751512469289,0.24324378,108720.0,108710.0,1.44332727]
[1751512469485,0.49458176,108720.0,108710.0,1.44332727]
[1751512470187,0.67847976,108720.0,108710.0,1.44332727]
[1751512470788,0.63847976,108720.0,108710.0,1.44332727]
[1751512472393,0.38714178,108720.0,108710.0,1.44332727]
[1751512472588,0.63847976,108720.0,108710.0,1.44332727]
[1751512473792,0.20324378,108720.0,108710.0,1.44332727]
[1751512473988,0.45458176,108720.0,108710.0,1.44332727]
[1751512475794,0.63847976,108720.0,108710.0,1.44332727]
[1751512477595,0.45458176,108720.0,108710.0,1.44332727]
[1751512478001,0.20324378,108720.0,108710.0,1.44332727]
[1751512479297,0.38714178,108720.0,108710.0,1.44332727]
[1751512479498,0.63847976,108720.0,108710.0,1.44332727]
[1751512479896,0.63847976,108720.0,108710.0,1.19198929]
[1751512480097,0.63847976,108720.0,108710.0,1.44332727]
[1751512483496,0.63847976,108720.0,108710.0,1.44368727]
[1751512485398,0.64847976,108720.0,108710.0,1.44368727]
[1751512486002,0.64847976,108720.0,108710.0,1.19234929]
[1751512486203,0.64847976,108720.0,108710.0,1.44368727]
[1751512491304,0.39714178,108720.0,108710.0,1.44368727]
[1751512491503,0.64847976,108720.0,108710.0,1.44368727]
[1751512494305,0.64856061,108720.0,108710.0,1.44368727]
[1751512505921,0.39723284,108720.0,108710.0,1.44368727]
[1751512507321,0.39723284,108720.0,108710.0,1.38855989]
[1751512509225,0.39723284,108720.0,108710.0,0.55235989]
[1751512509424,0.39723284,108720.0,108710.0,1.38815989]
[1751512512822,0.3972239,108720.0,108710.0,1.38815989]
[1751512513430,0.2133259,108720.0,108710.0,1.38815989]
[1751512513826,0.2133259,108720.0,108710.0,1.88815989]
[1751512514024,0.2133259,108720.0,108710.0,1.54815989]
[1751512514230,0.2033259,108720.0,108710.0,1.54815989]
[1751512514932,0.2333259,108720.0,108710.0,1.54815989]
[1751512515832,0.2033259,108720.0,108710.0,1.54815989]
[1751512516029,0.2333259,108720.0,108710.0,1.54815989]
[1751512517234,0.2333259,108720.0,108710.0,1.60328727]
[1751512518235,0.2025259,108720.0,108710.0,1.95328727]
[1751512518534,0.214981,108730.0,108720.0,0.1838979]
[1751512518727,0.214981,108730.0,108720.0,1.31137386]
[1751512518728,0.534981,108730.0,108720.0,1.31137386]
[1751512518922,0.600381,108730.0,108720.0,1.31137386]
[1751512519231,0.600381,108730.0,108720.0,1.04737386]
[1751512519430,0.961181,108730.0,108720.0,0.68657386]
[1751512519633,0.600381,108730.0,108720.0,0.68757386]
[1751512520429,0.600381,108730.0,108720.0,0.68857386]
[1751512520830,0.85171898,108730.0,108720.0,0.68857386]
[1751512521134,0.53171898,108730.0,108720.0,0.68857386]
[1751512521633,0.54171898,108730.0,108720.0,0.68857386]
[1751512522134,0.85171898,108730.0,108720.0,0.68857386]
[1751512523033,0.85171898,108730.0,108720.0,0.1858979]
[1751512523233,0.85171898,108730.0,108720.0,0.68857386]
[1751512524040,0.600381,108730.0,108720.0,0.68857386]
[1751512524337,0.85171898,108730.0,108720.0,0.68857386]
[1751512524730,0.85171898,108730.0,108720.0,0.43723588]
[1751512528534,0.55171898,108730.0,108720.0,0.43723588]
[1751512529742,0.86171898,108730.0,108720.0,0.43723588]
[1751512530541,0.55385689,108730.0,108720.0,0.43723588]
[1751512530742,0.57385689,108730.0,108720.0,0.43723588]
[1751512534347,0.91385689,108730.0,108720.0,0.43723588]
[1751512534544,0.57385689,108730.0,108720.0,0.43723588]
[1751512535346,0.91385689,108730.0,108720.0,0.43723588]
[1751512535743,0.66385689,108730.0,108720.0,0.43723588]
[1751512535945,0.91385689,108730.0,108720.0,0.43723588]
[1751512537745,1.27465689,108730.0,108720.0,0.1858979]
[1751512538148,1.27465689,108730.0,108720.0,0.43723588]
[1751512539652,1.27466425,108730.0,108720.0,0.43723588]
[1751512541152,1.27466425,108730.0,108720.0,0.1858979]
[1751512541947,1.52600223,108730.0,108720.0,0.1858979]
[1751512542653,1.27466425,108730.0,108720.0,0.1858979]
[1751512543045,0.183898,108720.0,108710.0,0.01816981]
[1751512543247,1.51531923,108720.0,108710.0,0.21578633]
[1751512543750,1.52435602,108720.0,108710.0,0.21578633]
[1751512544349,1.52435602,108720.0,108710.0,0.21790419]
[1751512544949,1.52435602,108720.0,108710.0,0.22090419]
[1751512545152,1.51531923,108720.0,108710.0,0.22090419]